bitfinex-derivatives/quotes_BTCF0:USTF0_20250709
["timestamp","ask_amount","ask_price","bid_price","bid_amount"]
[1752066487799,0.1994833,109740.0,109730.0,0.99668042]
[1752066488298,0.1994833,109740.0,109730.0,0.99668028]
[1752066488997,0.1994833,109740.0,109730.0,0.74549004]
[1752066489294,0.2227533,109740.0,109730.0,0.99668028]
[1752066490194,0.2227533,109740.0,109730.0,0.74549004]
[1752066490400,0.2227533,109740.0,109730.0,0.99668028]
[1752066490599,0.2227533,109740.0,109730.0,0.74549004]
[1752066490891,0.2227533,109740.0,109730.0,0.99668028]
[1752066491287,0.04053,109740.0,109730.0,0.99668028]
[1752066492797,0.01726,109740.0,109730.0,0.99668028]
[1752066492998,0.001,109740.0,109730.0,1.00736481]
[1752066494103,0.18180963,109760.0,109750.0,0.1822065]
[1752066494295,0.19806963,109760.0,109750.0,0.44764298]
[1752066494491,0.09383963,109760.0,109750.0,0.44764298]
[1752066494697,0.05249769,109760.0,109750.0,0.50994298]
[1752066495098,0.05249769,109760.0,109750.0,0.81994298]
[1752066495298,0.05249769,109760.0,109750.0,0.86078128]
[1752066495604,0.05649769,109760.0,109750.0,0.86078128]
[1752066496199,0.05649769,109760.0,109750.0,0.60959104]
[1752066496398,0.05649769,109760.0,109750.0,0.86078128]
[1752066497208,0.05649769,109760.0,109750.0,0.81994298]
[1752066498004,0.05649769,109760.0,109750.0,0.82928476]
[1752066498204,0.03322769,109760.0,109750.0,0.87012306]
[1752066498507,0.01696769,109760.0,109750.0,0.87012306]
[1752066499804,0.01696769,109760.0,109750.0,0.29959104]
[1752066500006,0.03322769,109760.0,109750.0,0.55078128]
[1752066500210,0.05819769,109760.0,109750.0,0.55078128]
[1752066501099,0.05819769,109760.0,109750.0,0.50994298]
[1752066501804,0.05819769,109760.0,109750.0,0.51896803]
[1752066503108,0.05819769,109760.0,109750.0,0.83896803]
[1752066503804,0.01696769,109760.0,109750.0,0.83896803]
[1752066504006,0.31825342,109790.0,109780.0,0.1821568]
[1752066504299,0.00970148,109790.0,109780.0,0.84677033]
[1752066504504,0.00970148,109790.0,109780.0,0.50815107]
[1752066504707,0.00970148,109790.0,109780.0,0.50815093]
[1752066505204,0.00970148,109790.0,109780.0,0.86815093]
[1752066505793,0.01370148,109790.0,109780.0,0.86815093]
[1752066506000,0.007,109800.0,109790.0,0.1821401]
[1752066506195,0.007,109800.0,109790.0,1.76245658]
[1752066506994,0.007,109800.0,109790.0,1.77136381]
[1752066507200,0.007,109800.0,109790.0,1.80466381]
[1752066507401,0.007,109800.0,109790.0,2.18466381]
[1752066507800,0.02316,109800.0,109790.0,1.11985658]
[1752066508099,0.2670836,109800.0,109790.0,0.19638634]
[1752066508298,0.02316,109800.0,109790.0,0.44757658]
[1752066508498,0.02316,109800.0,109790.0,0.84175607]
[1752066509100,0.007,109800.0,109790.0,0.88275607]
[1752066509305,0.007,109800.0,109790.0,0.52275607]
[1752066510005,0.007,109800.0,109790.0,0.88275607]
[1752066510900,0.007,109800.0,109790.0,0.52275607]
[1752066511100,0.03674985,109810.0,109800.0,0.1821237]
[1752066511299,0.00983767,109820.0,109810.0,0.1821071]
[1752066511502,0.00983767,109820.0,109810.0,1.15264358]
[1752066512199,7e-08,109820.0,109810.0,2.14596182]
[1752066512405,0.01194456,109840.0,109830.0,0.1820739]
[1752066512606,0.02810456,109840.0,109830.0,0.46625288]
[1752066512803,0.5267521,109840.0,109830.0,0.19632014]
[1752066513003,0.1820739,109830.0,109820.0,0.3186372]
[1752066513207,0.1820739,109830.0,109820.0,0.3328741]
[1752066513208,0.2474739,109830.0,109820.0,0.3328741]
[1752066513413,0.2474739,109830.0,109810.0,0.1821019]
[1752066513414,0.2731586,109820.0,109810.0,0.1821019]
[1752066513708,0.58974884,109820.0,109810.0,0.1821019]
[1752066513903,0.5206866,109820.0,109810.0,0.1821019]
[1752066514103,1.1642866,109820.0,109810.0,0.1821019]
[1752066514311,1.41547684,109820.0,109810.0,0.1821019]
[1752066514498,1.0071286,109820.0,109810.0,0.1821019]
[1752066514703,1.25823884,109820.0,109810.0,0.1821019]
[1752066514901,1.25823884,109820.0,109810.0,0.1871019]
[1752066516814,0.61471884,109820.0,109810.0,0.1871019]
[1752066517108,1.22867264,109820.0,109810.0,0.1871019]
[1752066517705,0.09037,109820.0,109810.0,0.1871019]
[1752066517902,0.74969,109820.0,109810.0,0.43829214]
[1752066518104,0.10653,109820.0,109810.0,0.43829214]
[1752066518303,0.10653,109820.0,109810.0,0.1871019]
[1752066519120,0.04856,109820.0,109810.0,0.47139214]
[1752066519411,0.05567,109830.0,109820.0,0.1820905]
[1752066519717,0.10193,109830.0,109820.0,0.1820905]
[1752066520405,0.2840039,109830.0,109820.0,0.1820905]
[1752066520605,0.53519414,109830.0,109820.0,0.1820905]
[1752066521208,0.2840039,109830.0,109820.0,0.1830905]
[1752066521407,0.53519414,109830.0,109820.0,0.1830905]
[1752066522109,0.10193,109830.0,109820.0,0.1830905]
[1752066522311,0.926684,109830.0,109820.0,0.1830905]
[1752066522510,0.10193,109830.0,109820.0,0.1830905]
[1752066523112,0.284004,109830.0,109820.0,0.1830905]
[1752066523612,0.10193,109830.0,109820.0,0.1830905]
[1752066523812,0.284004,109830.0,109820.0,0.1830905]
[1752066524012,0.10193,109830.0,109820.0,0.1830905]
[1752066524210,0.284004,109830.0,109820.0,0.1830905]
[1752066524807,0.35312024,109830.0,109820.0,0.1830905]
[1752066525016,0.10193,109830.0,109820.0,0.1830905]
[1752066525217,0.10193,109830.0,109820.0,0.43428074]
[1752066525415,0.10193,109830.0,109820.0,0.44851641]
[1752066525416,0.284004,109830.0,109820.0,0.44851641]
[1752066525616,0.53519424,109830.0,109820.0,0.19732617]
[1752066526905,1.17811424,109830.0,109820.0,0.19732617]
[1752066529111,0.926924,109830.0,109820.0,0.19732617]
[1752066529312,1.17811424,109830.0,109820.0,0.19732617]
[1752066529816,1.42930448,109830.0,109820.0,0.19732617]
[1752066530016,1.17811424,109830.0,109820.0,0.19732617]
[1752066531113,1.13698424,109830.0,109820.0,0.19732617]
[1752066531417,1.16085424,109830.0,109820.0,0.19732732]
[1752066531620,1.41204448,109830.0,109820.0,0.19732732]
[1752066532028,1.16085424,109830.0,109820.0,0.19732732]
[1752066532328,1.41204448,109830.0,109820.0,0.19732732]
[1752066532625,1.16085424,109830.0,109820.0,0.19732732]
[1752066533215,1.41204448,109830.0,109820.0,0.01523682]
[1752066534222,1.51204448,109830.0,109820.0,0.01523682]
[1752066534421,1.51204448,109830.0,109820.0,0.01523712]
[1752066535220,1.59291642,109830.0,109820.0,0.01523712]
[1752066535520,1.51204448,109830.0,109820.0,0.01523712]
[1752066535721,1.51204448,109830.0,109820.0,0.19732752]
[1752066535926,1.51204448,109830.0,109820.0,0.01523712]
[1752066536512,1.41204448,109830.0,109820.0,0.19732742]
[1752066537122,1.49291642,109830.0,109820.0,0.19732742]
[1752066537318,1.49291642,109830.0,109820.0,0.19732815]
[1752066537521,0.99053594,109830.0,109820.0,0.19732815]
[1752066537720,1.50933642,109830.0,109820.0,0.19732815]
[1752066538225,1.50933642,109830.0,109820.0,0.01523785]
[1752066539013,1.50933642,109830.0,109820.0,0.19732815]
[1752066539419,1.50933642,109830.0,109820.0,0.01523785]
[1752066540226,1.50933642,109830.0,109820.0,0.19732815]
[1752066540522,1.50933642,109830.0,109820.0,0.02591616]
[1752066540721,1.50933642,109830.0,109820.0,0.01523785]
[1752066542032,1.60933642,109830.0,109820.0,0.01523785]
[1752066542718,1.60933642,109830.0,109820.0,0.01423785]
[1752066542925,0.1821069,109810.0,109800.0,0.00013695]
[1752066543120,0.1821069,109810.0,109790.0,0.0404725]
[1752066543121,0.1821235,109800.0,109790.0,0.0404725]
[1752066543425,0.1821401,109790.0,109780.0,0.0404725]
[1752066543627,1.79239034,109790.0,109780.0,0.1821567]
[1752066543828,1.81626034,109790.0,109780.0,0.1821567]
[1752066544826,1.5650701,109790.0,109780.0,0.1821567]
[1752066545126,1.81626034,109790.0,109780.0,0.1901567]
[1752066546530,1.81626034,109790.0,109780.0,0.1941567]
[1752066547129,1.81626034,109790.0,109780.0,0.1821567]
[1752066547332,1.81626034,109790.0,109780.0,0.1841567]
[1752066548730,1.79984034,109790.0,109780.0,0.1841567]
[1752066552133,1.15924034,109790.0,109780.0,0.1841567]
[1752066553340,0.2384101,109790.0,109780.0,0.43534694]
[1752066553543,0.8943101,109790.0,109780.0,0.49694694]
[1752066553739,0.8619101,109790.0,109780.0,0.49694694]
[1752066553945,0.65582,109790.0,109780.0,0.49694694]
[1752066554141,0.2143179,109810.0,109790.0,0.1821401]
[1752066554350,0.2515153,109810.0,109800.0,0.43331374]
[1752066554538,0.8909953,109810.0,109800.0,0.2453235]
[1752066554739,0.9074153,109810.0,109800.0,0.2453235]
[1752066555233,0.67977,109810.0,109800.0,0.2453235]
[1752066555434,0.2223969,109810.0,109800.0,0.2453235]
[1752066555738,0.8619569,109810.0,109800.0,0.2453235]
[1752066555937,0.8619569,109810.0,109800.0,0.49651374]
[1752066556140,0.8619169,109810.0,109800.0,0.49651374]
[1752066556339,0.8629169,109810.0,109800.0,0.49651374]
[1752066556540,0.8629169,109810.0,109800.0,0.2453235]
[1752066556744,0.8629169,109810.0,109800.0,0.49651374]
[1752066556947,0.8619169,109810.0,109800.0,0.2453235]
[1752066557151,0.8629169,109810.0,109800.0,0.2453235]
[1752066558045,0.8465769,109810.0,109800.0,0.49651374]
[1752066558356,0.001,109810.0,109800.0,0.49651374]
[1752066558543,0.6406,109810.0,109800.0,0.49951374]
[1752066558944,0.65602,109810.0,109800.0,0.56951374]
[1752066559449,0.65602,109810.0,109800.0,0.3183235]
[1752066559651,0.8381269,109810.0,109800.0,0.56951374]
[1752066559845,0.8619969,109810.0,109800.0,0.3193235]
[1752066560045,0.8381269,109810.0,109800.0,0.57051374]
[1752066560246,0.8619969,109810.0,109800.0,0.57151374]
[1752066561552,0.8619969,109810.0,109800.0,0.3203235]
[1752066562054,0.2223969,109810.0,109800.0,0.3203235]
[1752066562254,0.04029,109810.0,109800.0,0.3203235]
[1752066562451,0.04029,109810.0,109800.0,0.58219212]
[1752066562853,0.2223969,109810.0,109800.0,0.33100188]
[1752066563054,0.2223969,109810.0,109800.0,0.58219212]
[1752066563453,0.2223969,109810.0,109800.0,0.3203235]
[1752066563654,0.2223969,109810.0,109800.0,0.58219203]
[1752066564049,0.2209469,109810.0,109800.0,0.26100179]
[1752066565152,0.2209469,109810.0,109800.0,0.59151374]
[1752066565652,0.2209469,109810.0,109800.0,0.3403235]
[1752066567353,0.03884,109810.0,109800.0,0.59151374]
[1752066567560,0.9287817,109820.0,109810.0,0.1821069]
[1752066567758,0.9904551,109820.0,109810.0,0.1821069]
[1752066567963,0.01615,109820.0,109810.0,0.43329714]
[1752066568152,0.2209303,109820.0,109810.0,0.2454069]
[1752066568459,0.2209303,109820.0,109810.0,0.53553348]
[1752066568760,0.2209303,109820.0,109810.0,0.29502101]
[1752066569063,0.2209303,109820.0,109810.0,0.27502101]
[1752066569359,0.2209303,109820.0,109810.0,0.34802101]
[1752066570060,0.2830303,109820.0,109810.0,0.33734324]
[1752066570446,0.2830303,109820.0,109810.0,0.40968575]
[1752066570850,0.2830303,109820.0,109810.0,0.30674324]
[1752066571154,0.53422054,109820.0,109810.0,0.1851069]
[1752066572361,0.53422054,109820.0,109810.0,0.1951069]
[1752066572562,0.53422054,109820.0,109810.0,0.20428651]
[1752066574366,0.49538054,109820.0,109810.0,0.20428651]
[1752066574564,0.53422054,109820.0,109810.0,0.20428651]
[1752066575561,0.53422054,109820.0,109810.0,0.1851069]
[1752066576865,1.17430054,109820.0,109810.0,0.003]
[1752066577067,1.13546054,109820.0,109810.0,0.003]
[1752066577258,1.17430054,109820.0,109810.0,0.003]
[1752066577565,1.27430054,109820.0,109810.0,0.003]
[1752066578158,1.35619943,109820.0,109810.0,0.003]
[1752066578563,1.25619943,109820.0,109810.0,0.003]
[1752066579957,1.00500919,109820.0,109810.0,0.003]
[1752066580267,1.25619943,109820.0,109810.0,0.003]
[1752066580570,1.21735943,109820.0,109810.0,0.003]
[1752066580861,1.24004943,109820.0,109810.0,0.003]
[1752066585162,1.15815054,109820.0,109810.0,0.003]
[1752066585467,1.25815054,109820.0,109810.0,0.003]
[1752066585865,0.1821236,109800.0,109790.0,0.318734]
[1752066586064,1.07351384,109800.0,109790.0,0.318734]
[1752066586265,1.17475384,109800.0,109790.0,0.318734]
[1752066586868,0.9235636,109800.0,109790.0,0.318734]
[1752066587068,1.17475384,109800.0,109790.0,0.321734]
[1752066588167,1.17475384,109800.0,109790.0,0.326734]
[1752066589669,1.15860384,109800.0,109790.0,0.326734]
[1752066592175,0.9074136,109800.0,109790.0,0.326734]
[1752066592374,1.24860895,109800.0,109790.0,0.326734]
[1752066593063,1.24860895,109800.0,109790.0,0.321734]
[1752066593267,1.24860895,109800.0,109790.0,0.319734]
[1752066594260,0.11269511,109800.0,109790.0,0.319734]
[1752066594464,0.71305511,109800.0,109790.0,0.64420307]
[1752066594875,0.72818511,109800.0,109790.0,0.69420307]
[1752066595264,0.72818511,109800.0,109790.0,0.74878141]
[1752066595465,0.72806511,109800.0,109790.0,0.74878141]
[1752066596470,0.11319511,109800.0,109790.0,0.74878141]
[1752066596671,0.75223511,109800.0,109790.0,0.74878141]
[1752066596871,0.67838,109800.0,109790.0,0.74878141]
[1752066597375,0.67838,109800.0,109790.0,0.74878124]
[1752066597778,0.8605037,109800.0,109790.0,0.497591]
[1752066597969,0.2214637,109800.0,109790.0,0.74878124]
[1752066598170,0.0697326,109820.0,109810.0,0.1821071]
[1752066598381,0.9814861,109820.0,109810.0,0.44740318]
[1752066598676,0.9966161,109820.0,109810.0,0.25691294]
[1752066599476,1.24780634,109820.0,109810.0,0.25691294]
[1752066599978,1.24880634,109820.0,109810.0,0.25691294]
[1752066600177,1.31310634,109820.0,109810.0,0.19621294]
[1752066601473,1.31510634,109820.0,109810.0,0.19621294]
[1752066602182,1.31510634,109820.0,109810.0,0.19615067]
[1752066602385,1.31310634,109820.0,109810.0,0.19615067]
[1752066602972,1.31210634,109820.0,109810.0,0.19615067]
[1752066603281,1.31310634,109820.0,109810.0,0.19615067]
[1752066605880,1.26758144,109820.0,109810.0,0.19615067]
[1752066606278,0.70904,109820.0,109810.0,0.19615067]
[1752066606478,0.8911305,109820.0,109810.0,0.22735067]
[1752066606678,0.70904,109820.0,109810.0,0.25735067]
[1752066606879,0.70804,109820.0,109810.0,0.25735067]
[1752066607785,0.67694,109820.0,109810.0,0.50854091]
[1752066608180,0.03934,109820.0,109810.0,0.50854091]
[1752066608374,0.67694,109820.0,109810.0,0.51921799]
[1752066608581,0.67694,109820.0,109810.0,0.52021799]
[1752066609185,0.09378989,109840.0,109830.0,0.1820739]
[1752066609378,0.02707456,109840.0,109830.0,0.44730771]
[1752066609678,0.68884456,109840.0,109830.0,0.23929408]
[1752066609881,0.68884456,109840.0,109830.0,0.27039408]
[1752066610382,0.68984456,109840.0,109830.0,0.25971747]
[1752066610887,0.68984456,109840.0,109830.0,0.51090771]
[1752066611090,0.68992456,109840.0,109830.0,0.5202298]
[1752066611386,0.68992456,109840.0,109830.0,0.26903956]
[1752066611685,0.68992456,109840.0,109830.0,0.5202298]
[1752066611982,0.9731948,109840.0,109830.0,0.19611747]
[1752066612186,1.1853521,109840.0,109830.0,0.19611747]
[1752066614286,0.01494456,109840.0,109830.0,1.21926508]
[1752066614485,0.01494456,109840.0,109830.0,1.31486508]
[1752066615084,0.01494456,109840.0,109830.0,1.00553404]
[1752066615391,0.01494456,109840.0,109830.0,0.76501844]
[1752066615991,0.01494456,109840.0,109830.0,1.11501844]
[1752066616294,0.01194456,109840.0,109830.0,1.11601844]
[1752066616489,0.01194456,109840.0,109830.0,1.11920755]
[1752066616686,0.01194456,109840.0,109830.0,0.93711955]
[1752066616994,0.01194456,109840.0,109830.0,0.64936412]
[1752066617288,0.01194456,109840.0,109830.0,0.60869516]
[1752066618190,0.01194456,109840.0,109830.0,0.59802052]
[1752066618587,0.01194456,109840.0,109830.0,0.67206437]
[1752066620991,0.01194456,109840.0,109830.0,0.68273891]
[1752066622487,0.01194456,109840.0,109830.0,0.3693041]
[1752066622690,0.01194456,109840.0,109830.0,0.68273896]
[1752066622993,0.01194456,109840.0,109830.0,0.67206437]
[1752066623192,0.01194456,109840.0,109830.0,0.35862956]
[1752066623487,0.01194456,109840.0,109830.0,0.68273899]
[1752066623692,0.01194456,109840.0,109830.0,0.36930418]
[1752066623892,0.01194456,109840.0,109830.0,1.32009899]
[1752066624394,0.01194456,109840.0,109830.0,1.30942437]
[1752066624788,0.01194456,109840.0,109830.0,1.35009333]
[1752066625196,0.01194456,109840.0,109830.0,1.30942437]
[1752066625495,0.01194456,109840.0,109830.0,0.99598956]
[1752066625894,0.01194456,109840.0,109830.0,1.30942437]
[1752066627497,0.02795456,109840.0,109830.0,1.30942437]
[1752066629897,0.02795456,109840.0,109830.0,1.31942437]
[1752066630400,0.01194456,109840.0,109830.0,1.31942437]
[1752066631191,0.01194456,109840.0,109830.0,1.65942437]
[1752066633692,0.01194456,109840.0,109830.0,0.70862956]
[1752066633890,0.01194456,109840.0,109830.0,1.66062437]
[1752066634090,0.01194456,109840.0,109830.0,1.70129333]
[1752066634287,0.01194456,109840.0,109830.0,1.38785852]
[1752066634486,0.01194456,109840.0,109830.0,1.70129333]
[1752066634689,0.01194456,109840.0,109830.0,1.66062437]
[1752066635093,0.01194456,109840.0,109830.0,1.70129333]
[1752066635290,0.01194456,109840.0,109830.0,1.71196784]
[1752066637193,0.01194456,109840.0,109830.0,1.4528086]
[1752066637390,0.01194456,109840.0,109830.0,1.76624341]
[1752066637591,0.02795456,109840.0,109830.0,1.4537686]
[1752066637795,0.09175456,109840.0,109830.0,1.68292784]
[1752066637996,0.11462456,109840.0,109830.0,1.68292784]
[1752066638203,0.11462456,109840.0,109830.0,1.73720341]
[1752066638903,0.11462456,109840.0,109830.0,1.67455782]
[1752066639103,0.11462456,109840.0,109830.0,1.63388886]
[1752066639701,0.09175456,109840.0,109830.0,1.63388886]
[1752066639902,0.09175456,109840.0,109830.0,1.3828493]
[1752066640108,0.11462456,109840.0,109830.0,0.92851852]
[1752066640498,0.11462456,109840.0,109830.0,0.6777293]
[1752066640703,0.11462456,109840.0,109830.0,0.92851852]
[1752066641304,0.11462456,109840.0,109830.0,0.87424295]
[1752066641605,0.11462456,109840.0,109830.0,0.72694295]
[1752066641905,0.11462456,109840.0,109830.0,0.47615373]
[1752066642104,0.11462456,109840.0,109830.0,0.72694295]
[1752066643102,0.11462456,109840.0,109830.0,0.86331981]
[1752066643306,0.11462456,109840.0,109830.0,1.50523981]
[1752066643708,0.36541378,109840.0,109830.0,0.43983059]
[1752066643911,0.36541378,109840.0,109830.0,0.3577293]
[1752066644112,0.36541378,109840.0,109830.0,0.28368545]
[1752066644621,0.11462456,109840.0,109830.0,0.28368545]
[1752066644820,0.36541378,109840.0,109830.0,0.28368545]
[1752066645013,0.07574456,109840.0,109830.0,0.28368545]
[1752066645318,0.11462456,109840.0,109830.0,0.28368545]
[1752066645512,0.36541378,109840.0,109830.0,0.28368545]
[1752066645819,0.36541378,109840.0,109830.0,0.36578674]
[1752066646019,0.36541378,109840.0,109830.0,0.28368545]
[1752066646220,0.29668176,109840.0,109830.0,0.28368545]
[1752066646414,1.4397802,109840.0,109830.0,0.26500622]
[1752066646619,1.69897009,109840.0,109830.0,0.20151059]
[1752066646819,1.37947965,109840.0,109830.0,0.21218664]
[1752066647016,1.63026887,109840.0,109830.0,0.21218664]
[1752066647216,1.12947965,109840.0,109830.0,0.21218664]
[1752066647416,1.38026887,109840.0,109830.0,0.20151059]
[1752066648312,1.19818087,109840.0,109830.0,0.20151059]
[1752066648519,1.59217809,109840.0,109830.0,0.20151059]
[1752066648713,1.61504809,109840.0,109830.0,0.20151059]
[1752066648913,1.36425887,109840.0,109830.0,0.20151059]
[1752066649108,1.61504809,109840.0,109830.0,0.22285374]
[1752066649618,0.1820738,109830.0,109820.0,0.36817161]
[1752066649818,0.76276224,109830.0,109820.0,0.36817161]
[1752066650419,0.76276224,109830.0,109820.0,0.27713291]
[1752066650620,0.78621224,109830.0,109820.0,0.27713291]
[1752066650819,0.78621224,109830.0,109820.0,0.27913291]
[1752066651124,0.78621224,109830.0,109820.0,0.04277994]
[1752066651315,0.1820904,109820.0,109810.0,0.05427557]
[1752066651522,1.15921962,109820.0,109810.0,0.23638257]
[1752066651715,1.15921962,109820.0,109810.0,0.05427557]
[1752066651716,1.18266962,109820.0,109810.0,0.05427557]
[1752066652421,1.18266962,109820.0,109810.0,0.23638257]
[1752066652617,1.18266962,109820.0,109810.0,0.182107]
[1752066653014,1.18242962,109820.0,109810.0,0.23638257]
[1752066653210,1.18242962,109820.0,109810.0,0.24138257]
[1752066654019,1.18242962,109820.0,109810.0,0.24438257]
[1752066654222,1.18242962,109820.0,109810.0,0.190107]
[1752066654619,0.53474962,109820.0,109810.0,0.190107]
[1752066654817,0.9318804,109820.0,109810.0,0.24438257]
[1752066655221,0.9318804,109820.0,109810.0,0.26068257]
[1752066655421,1.18266962,109820.0,109810.0,0.26068257]
[1752066656029,1.18266962,109820.0,109810.0,0.206407]
[1752066656417,0.9318804,109820.0,109810.0,0.206407]
[1752066656625,1.18242962,109820.0,109810.0,0.206407]
[1752066657028,0.9316404,109820.0,109810.0,0.206407]
[1752066657229,0.9316804,109820.0,109810.0,0.206407]
[1752066657525,1.18246962,109820.0,109810.0,0.206407]
[1752066657922,0.9316804,109820.0,109810.0,0.206407]
[1752066658327,0.10187,109820.0,109810.0,0.45719622]
[1752066658528,0.7257,109820.0,109810.0,0.45719622]
[1752066658728,0.0631,109820.0,109810.0,0.52019622]
[1752066658923,0.67828,109820.0,109810.0,0.52019622]
[1752066659227,0.6936,109820.0,109810.0,0.54354622]
[1752066660127,0.04632,109820.0,109810.0,0.54354622]
[1752066660324,0.69388,109820.0,109810.0,0.54354622]
[1752066660523,0.69368,109820.0,109810.0,0.54354622]
[1752066660928,0.04632,109820.0,109810.0,0.54354622]
[1752066661130,0.69368,109820.0,109810.0,0.54354622]
[1752066661323,0.66252,109820.0,109810.0,0.54354622]
[1752066661923,0.66244,109820.0,109810.0,0.54354622]
[1752066662124,0.01532,109820.0,109810.0,0.54354622]
[1752066663224,0.01532,109820.0,109810.0,0.292757]
[1752066663425,0.07612,109820.0,109810.0,0.52019622]
[1752066663726,0.07612,109820.0,109810.0,0.206407]
[1752066663727,0.53244962,109820.0,109810.0,0.206407]
[1752066663935,0.53244962,109820.0,109810.0,0.190107]
[1752066670536,0.53244962,109820.0,109810.0,0.008]
[1752066671532,0.71457762,109820.0,109810.0,0.008]
[1752066672028,0.71457762,109820.0,109810.0,0.190107]
[1752066672233,1.35969762,109820.0,109810.0,0.190107]
[1752066673634,1.17756962,109820.0,109810.0,0.190107]
[1752066677640,0.182107,109810.0,109800.0,0.2276463]
[1752066677840,0.53496622,109810.0,109800.0,0.2276463]
[1752066678141,0.1821236,109800.0,109790.0,0.29246686]
[1752066678443,1.17914282,109800.0,109790.0,0.30876686]
[1752066679042,0.1821401,109790.0,109780.0,0.3187523]
[1752066679253,0.51154932,109790.0,109780.0,0.3187523]
[1752066679746,0.64816232,109790.0,109780.0,0.1821567]
[1752066680739,0.72835001,109790.0,109780.0,0.1821567]
[1752066681345,0.71941389,109790.0,109780.0,0.1821567]
[1752066682048,0.72041389,109790.0,109780.0,0.1821567]
[1752066682549,0.74493389,109790.0,109780.0,0.1821567]
[1752066685745,0.74493389,109790.0,109780.0,0.19283746]
[1752066687749,0.74493389,109790.0,109780.0,0.1821567]
[1752066688946,0.60832089,109790.0,109780.0,0.1821567]
[1752066689247,0.65949,109790.0,109780.0,0.48357649]
[1752066689551,0.8416301,109790.0,109780.0,0.54887649]
[1752066689750,0.8416301,109790.0,109780.0,0.27387727]
[1752066690750,0.8416301,109790.0,109780.0,0.2631967]
[1752066690947,0.8656201,109790.0,109780.0,0.2631967]
[1752066691140,1.11640932,109790.0,109780.0,0.2631967]
[1752066691347,1.10055932,109790.0,109780.0,0.2631967]
[1752066691652,0.8497701,109790.0,109780.0,0.2631967]
[1752066691849,0.8257801,109790.0,109780.0,0.2631967]
[1752066692054,0.8656201,109790.0,109780.0,0.2631967]
[1752066692247,0.8413501,109790.0,109780.0,0.2631967]
[1752066692845,0.8653401,109790.0,109780.0,0.2631967]
[1752066694154,0.8653401,109790.0,109780.0,0.27387694]
[1752066694354,0.8255001,109790.0,109780.0,0.25813694]
[1752066694554,0.8653401,109790.0,109780.0,0.27387694]
[1752066694751,0.8653401,109790.0,109780.0,0.27387679]
[1752066694954,0.8494901,109790.0,109780.0,0.27387679]
[1752066695153,0.8653401,109790.0,109780.0,0.27387679]
[1752066695553,1.10027932,109790.0,109780.0,0.27387679]
[1752066695848,1.10027932,109790.0,109780.0,0.2631967]
[1752066696354,1.10027932,109790.0,109780.0,0.27720059]
[1752066698958,0.8494901,109790.0,109780.0,0.27720059]
[1752066699957,0.8653401,109790.0,109780.0,0.27720059]
[1752066700653,0.001,109790.0,109780.0,0.87287976]
[1752066700852,0.001,109790.0,109780.0,0.92715578]
[1752066701052,0.3494054,109810.0,109800.0,0.1821236]
[1752066701254,1.0299254,109810.0,109800.0,0.46265671]
[1752066701558,1.0299254,109810.0,109800.0,0.27456749]
[1752066702961,1.0309254,109810.0,109800.0,0.27456749]
[1752066703262,1.0308854,109810.0,109800.0,0.27456749]
[1752066703450,1.0617854,109810.0,109800.0,0.27456749]
[1752066704361,1.13334231,109810.0,109800.0,0.27456749]
[1752066705757,1.38413153,109810.0,109800.0,0.27456749]
[1752066706569,0.74349153,109810.0,109800.0,0.27456749]
[1752066706765,1.38333153,109810.0,109800.0,0.27456749]
[1752066707162,0.74349153,109810.0,109800.0,0.27456749]
[1752066707362,1.38301153,109810.0,109800.0,0.27456749]
[1752066708059,1.13222231,109810.0,109800.0,0.24246749]
[1752066708562,1.38301153,109810.0,109800.0,0.24246749]
[1752066709366,1.13222231,109810.0,109800.0,0.24246749]
[1752066710462,0.40164261,109810.0,109800.0,0.24246749]
[1752066710663,1.04072261,109810.0,109800.0,0.24246749]
[1752066710861,1.04060261,109810.0,109800.0,0.24246749]
[1752066711063,1.04060261,109810.0,109800.0,0.28347158]
[1752066712067,1.04060261,109810.0,109800.0,0.26946769]
[1752066712262,1.04060261,109810.0,109800.0,0.28370556]
[1752066712467,1.02486261,109810.0,109800.0,0.28435556]
[1752066713369,1.02486261,109810.0,109800.0,0.29503396]
[1752066713560,1.02486261,109810.0,109800.0,0.24664396]
[1752066713755,1.02486261,109810.0,109800.0,0.23243396]
[1752066713960,1.02486261,109810.0,109800.0,0.21604396]
[1752066714160,1.02486261,109810.0,109800.0,0.23243396]
[1752066715162,1.27565183,109810.0,109800.0,0.23243396]
[1752066715970,1.25155183,109810.0,109800.0,0.20536556]
[1752066716165,0.63669183,109810.0,109800.0,0.22175556]
[1752066716370,1.29116183,109810.0,109800.0,0.20536556]
[1752066716670,1.29116183,109810.0,109800.0,0.22175556]
[1752066716871,0.65220183,109810.0,109800.0,0.20536556]
[1752066717171,0.65220183,109810.0,109800.0,0.21275147]
[1752066717371,1.29112183,109810.0,109800.0,0.21275147]
[1752066717867,0.65220183,109810.0,109800.0,0.21275147]
[1752066718074,1.29112183,109810.0,109800.0,0.21275147]
[1752066718463,1.04033261,109810.0,109800.0,0.21275147]
[1752066718774,1.29112183,109810.0,109800.0,0.21275147]
[1752066719072,1.04033261,109810.0,109800.0,0.21275147]
[1752066719974,1.29112183,109810.0,109800.0,0.21275147]
[1752066720774,1.00072261,109810.0,109800.0,0.19636147]
[1752066721072,1.27561183,109810.0,109800.0,0.21275147]
[1752066721277,1.02482261,109810.0,109800.0,0.21275147]
[1752066721461,1.27561183,109810.0,109800.0,0.21275147]
[1752066722271,1.27561183,109810.0,109800.0,0.22196734]
[1752066723576,1.02482261,109810.0,109800.0,0.22196734]
[1752066723777,1.27561183,109810.0,109800.0,0.22196734]
[1752066724181,1.27557183,109810.0,109800.0,0.22196734]
[1752066724365,1.27557183,109810.0,109800.0,0.20557734]
[1752066724566,1.27557183,109810.0,109800.0,0.22196734]
[1752066726176,1.27557183,109810.0,109800.0,0.01423787]
[1752066726372,1.27557183,109810.0,109800.0,0.19636137]
[1752066726574,1.02478261,109810.0,109800.0,0.19636137]
[1752066726776,1.27557183,109810.0,109800.0,0.19636137]
[1752066727978,1.02478261,109810.0,109800.0,0.19636137]
[1752066728274,0.63669183,109810.0,109800.0,0.24605413]
[1752066728477,0.07131,109810.0,109800.0,0.91241337]
[1752066728677,0.183107,109810.0,109800.0,0.98669141]
[1752066728879,0.198617,109810.0,109800.0,0.62023307]
[1752066729078,0.198617,109810.0,109800.0,0.93023307]
[1752066729273,0.183107,109810.0,109800.0,0.93023307]
[1752066729474,0.197617,109810.0,109800.0,0.9179952]
[1752066729673,0.182107,109810.0,109800.0,0.9016052]
[1752066729873,0.197617,109810.0,109800.0,0.9179952]
[1752066730079,0.221717,109810.0,109800.0,0.9189952]
[1752066730486,0.221717,109810.0,109800.0,0.35820598]
[1752066730776,0.53610622,109810.0,109800.0,0.30831774]
[1752066731282,0.53610622,109810.0,109800.0,0.29936269]
[1752066731882,0.35854189,109810.0,109800.0,0.30859071]
[1752066732085,0.35854189,109810.0,109800.0,0.55937993]
[1752066732475,0.35854189,109810.0,109800.0,0.57576993]